{"text_format":"1","workbook":"xlsx","n_sheets":8,"sheets":["HOME","Specs","Legal docs listing","Data base Entreprise","Identification","REPORTING","Feuil1","Feuil2"],"not_rendered":{"charts":0,"images":5,"macros":1,"external_links":0,"defined_names":20,"comments":2,"pivot_tables":0},"unopened":[],"bounds":{"document_bytes":16777216,"sheet_cells":100000,"rows_first":2000,"rows_last":500,"rows_between":2000,"halvings":0,"cell_chars":16384,"cell_head_chars":4096},"cells_cut":0,"cells_raw":0,"read":"whole","date_system":"1900"}

{"sheet":"HOME","index":0,"n_rows":0,"n_cols":0,"rows_kept":0,"cut":false,"hidden":false,"merged":[]}

{"sheet":"Specs","index":1,"n_rows":47,"n_cols":6,"rows_kept":47,"cut":false,"hidden":false,"merged":[[1,0,34,0],[14,3,15,3],[1,2,2,2]]}
["UF","CHAMP","STATUT","COMMENTAIRES","Remplissage \nobligatoire","Message d'erreur, si applicable"]
["ADDITION > AMENDMENT, CONTRACTS, NDA, ROLLING CONTRACTS, SQA, T&C","Date of creation","Textbox supprimés, inutiles la macro gère FAIT\n","Date du jour, champ invisible. Ok pour le supprimer, mais j'aurai quand meme besoin de savoir a quelle date ce document a ete enregistre... A quoi penses-tu ?","oui"]
[null,"Document number",null,"Formule à trouver (concaténation de plusieurs champs, à voir plus tard), champ invisible","oui"]
[null,"Purchasing division","OK","Choix restreint à la liste déroulante","oui"]
[null,"Purchasing Category","OK","Choix restreint à la liste déroulante","oui"]
[null,"Cpy Site","OK","Choix restreint à la liste déroulante","oui"]
[null,"BU involved","OK","Choix restreint à la liste déroulante","oui"]
[null,"Department","OK","Choix restreint à la liste déroulante","oui"]
[null,"Add a new department","OK","Lien vers UF NEW DEPARTMENT. > OK\nLe nouvel département renseigné doit venir compléter la liste déroulante \"DPTMT\"","non"]
[null,"Supplier name","OK","Choix restreint à la liste déroulante","oui"]
[null,"Add a new supplier","OK","Si le remplissage est fait, meme contrainte du @ stp\nLe nouveau supplier renseigné doit venir compléter la data base Supplier","non"]
[null,"Supplier segmentation","OK","Choix restreint à la liste déroulante","oui"]
[null,"Supplier e-mail","OK","Réponse doit contenir un @","non","Message d'erreur : \"Your entry is incorrect. Please try again\""]
[null,"Description","OK","Texte libre, avec limite de 1'000 caractères","oui"]
[null,"Starting date","In progress","Desole, ca ne marche toujours pas... Peu importe la date que tu rentres (ex : 15/12/2016), ca ne marche pas.","oui","Message d'erreur : \"Please complete the date as follow : DD/MM/YYYY\". Thanks !"]
[null,"Ending date","In progress",null,"oui","Message d'erreur : \"Please complete the date as follow : DD/MM/YYYY\". Thanks !"]
[null,"Tacite renewal","OK","Choix restreint à la liste déroulante","oui"]
[null,"Payment terms","OK","Choix restreint à la liste déroulante","oui"]
[null,"Add a new payment term","OK","Lien vers UF NEW payment term. > OK\nLe nouveau payment term renseigné devra venir compléter la liste déroulante créé à cet effet."]
[null,"Termination notice","OK","Choix restreint à la liste déroulante","oui"]
[null,"Add a new termination notice","OK","Lien vers UF NEW termination notice. > OK\nLe nouveau termination notice renseigné devra venir compléter la liste déroulante créé à cet effet (en cours de création)."]
[null,"Shipping conditions","OK","Choix restreint à la liste déroulante","oui"]
[null,"Add a new shipping condition","OK","Lien vers UF NEW shipping condition.> OK\n Le nouveau shipping condition renseigné devra venir compléter la liste déroulante créé à cet effet (en cours de création)."]
[null,"Currency","OK","Choix restreint à la liste déroulante","oui"]
[null,"Validity of the pricing","In progress","Idem que pour Starting et Ending date","oui","Message d'erreur : \"Please complete the date as follow : DD/MM/YYYY\". Thanks !"]
[null,"Document owner","OK","Texte libre","oui"]
[null,"E-mail document owner","OK","Réponse doit contenir un @","oui","Message d'erreur : \"Your entry is incorrect. Please try again\""]
[null,"E-mail purchasing document supervisor","OK","Réponse doit contenir un @","oui","Message d'erreur : \"Your entry is incorrect. Please try again\""]
[null,"Date of 1st notification","In progress","Idem que pour Starting et Ending date","oui","Message d'erreur : \"Please complete the date as follow : DD/MM/YYYY\". Thanks !"]
[null,"Date of 2nd notification","In progress","Idem que pour Starting et Ending date","oui","Message d'erreur : \"Please complete the date as follow : DD/MM/YYYY\". Thanks !"]
[null,"Document value","OK","Chiffres seulement","oui","Peux-tu faire apparaître le sigle de la devise à côté du montant, comme pour l'ancien fichier, et seulement sur les devises suivantes (CHF, EUR, USD, GBP)"]
[null,"Physical place of the amendment","OK","Texte libre","oui"]
[null,"Comments","OK","Texte libre, avec limite de 500 caractères","non"]
[null,"Save","FAIT sauf macro associée au bouton Quit qui doit enregister et fermer (à voir plus tard avec enregistrement du classeur)","Apres l’enregistrement des donnees, pourrais-tu créer une macro pour demander \ns’il souhaite ajouter un autre document, revenir a la page Home, ou quitter le fichier ?\nSi ajout d’un nouveau doc, il faudrait que l’UF qui s’affiche soit vide, et n’affiche pas les donnees enregistrees juste avant.","oui"]
[null,"Cancel","OK","Retour vers \"Home\"","oui"]
["MODIFICATION","Password","In progress","Texte libre mais doit matcher le password qui leur sera communiqué (liste dans data base enterprise)","oui","Message d'erreur : \"Your entry for the password is incorrect. Please try again\" "]
["SEARCH","Password","In progress","Texte libre mais doit matcher le password qui leur sera communiqué (liste dans data base enterprise)","oui","Message d'erreur : \"Your entry for the password is incorrect. Please try again\" "]
[]
[]
["FONCTIONNALITES GLOBALES DU FICHIER"]
[]
["A l'ouverture, le fichier doit s'ouvrir en plein écran"]
["Seul l'onglet \"Home\" doit être visible, tous les autres doivent êtres cachés, et ce tout le temps."]
["A la fin de chaque opération, le fichier doit s'enregistrer automatiquement"]
["A la fin de remplissage d'un UF, les champs obligatoires non renseignés doivent apparaître en surlignés."]
["Fichier doit rester ouvert pas plus de 5 minutes si aucune action dessus"]
["Fichier et macros à protéger par password"]

{"sheet":"Legal docs listing","index":2,"n_rows":183,"n_cols":50,"rows_kept":183,"cut":false,"hidden":false,"merged":[]}
["Date of creation","Document number","Type of legal document","Purchasing division","Purchasing sub-category","Cpy Site","BU involved","Department","Supplier name","Supplier segmentation","Supplier e-mail (if applicable)","Description of the document","Starting date of the document","Ending date of the document","Tacit renewal","Payment terms","Termination notice","Shipping conditions","Currency of the document","Validity of the pricing","Document owner","E-mail document owner","E-mail purchasing document supervisor","Date of the 1st reminder to send","Date of the 2nd reminder to send","Document value, yearly basis","Physical place of the document","Comments",null,"Type of legal document","Purchasing division","Purchasing sub-category","Cpy Site","BU involved","Department",null,"Supplier segmentation","Supplier e-mail (if applicable)","Description of the document","Starting date of the document","Ending date of the document","Tacit renewal","Payment terms","Termination notice","Shipping conditions","Currency of the document",null,"Supplier Name","Supplier Segmentation"]
["2016-06-16","C-I-ASI-01-16-1","Contract","Indirect","Belts","ASI-Switzerland","Sheet Fed","HR","APPLE","Strategic","","description contrat 1","2016-01-01","2023-01-01","YES",50,1,"DDP","CHF","2016-12-31","owner 1","owner1@","supervisor1@","2016-09-01","2017-02-01",1230,"place 1","commentaire 1",null,"Contract","Indirect","Belts","ASI-Switzerland","All of them","Back Office",null,"Strategic",null,null,null,null,"YES",10,0.5,"DDP","CHF","CHF","APPLE","Strategic",4]
["2016-06-16","C-I-ASI-05-15-2","Contract","Indirect","Belts","ASI-Switzerland","Sheet Fed","Back Office","APPLE","Strategic","","description contrat 2","2015-05-01","2018-01-01","YES",30,5,"DDP","CHF","2016-02-02","owner 2","nicolas.delarbre@bobst.com","supervisor2@","2016-08-01","2017-05-01",2222,"place2","commentaire 2",null,"NDA","Direct","Cast iron ","BSA-Switzerland","Sheet Fed","Communication",null,"Preferred",null,null,null,null,"NO",20,1,"DDU","EUR","€","AUCHAN","Preferred",3]
["2016-06-16","A-I-ASI-01-16-1-1","Amendment","Indirect","Belts","ASI-Switzerland","Sheet Fed","HR","APPLE","Strategic","","Avenant - Ending date repoussée du 31/12/2017 au 31/12/2018","2016-01-01","2018-12-31","YES",50,1,"DDP","CHF","2016-12-31","owner 1","owner1@","supervisor1@","2016-09-01","2017-02-01",1230,"place 1","commentaire 1",null,"Amendment","Project","Chains","SAM-France","Web Fed","Facility Management",null,"Tactical",null,null,null,null,"Unknown",30,2,"EXW","USD","$","BABY GO","Preferred",3]
["2016-06-17","A-I-ASI-01-16-1-2","Amendment","Indirect","Belts","ASI-Switzerland","Sheet Fed","HR","APPLE","Strategic","","Avenant - description contrat 1","01/01/2016","31/12/2020","YES",50,1,"DDP","CHF","31/12/2016","owner 1","owner1@","supervisor1@","01/09/2016","01/02/2017","1230","place 1","commentaire 1",null,"Rolling contract",null,"Communication","BAM-Tunisia","Services","Finance",null,null,null,null,null,null,null,50,3,"FCA","GBP","£","CARREFOUR","Preferred",3]
["2016-06-21","A-I-ASI-05-15-2-3","Amendment","Indirect","Belts","ASI-Switzerland","Sheet Fed","Back Office","APPLE","Strategic","","Avenant - description contrat 2","01/01/2016","31/12/2020","YES",50,1,"DDP","CHF","31/12/2016","owner 1","owner1@","supervisor1@","01/09/2016","01/02/2017","1230","place 1","commentaire 1",null,"SQA",null,"Connectors","BFA-France","Sheet Fed & Web Fed","HR",null,null,null,null,null,null,null,70,4,"FOB","  -------",null,"COCA","Tactical",2]
["2016-06-28","C-I-ASI-01-16-3","Contract","Indirect","Belts","ASI-Switzerland","All of them","Back Office","AUCHAN","Preferred","","zzzz","2016-01-01","2017-01-01","YES",10,1,"DDP","CHF","2016-12-31","jkjk","@","@","2016-08-01","2016-10-01",222,",kkk","",null,"T&C",null,"Consulting","ROT-Italy","Sheet Fed & Services","IP / Legal",null,null,null,null,null,null,null,90,5,"QWD","AED",null,"CONRAD","Preferred",3]
["2016-06-28","C-D-ASI-01-16-4","Contract","Direct","Belts","ASI-Switzerland","All of them","Back Office","CARREFOUR","Preferred","","essr","2016-01-01","2018-01-01","YES",30,1,"DDU","CHF","2016-12-31","zer","t@","@","2016-08-01","2017-01-01",2232,"hdf","",null,null,null,"Cylindrical Turning","SCH-Italy","Web Fed & Services","IT",null,null,null,null,null,null,null,110,6,null,"AFN",null,"DANONE","Strategic",2]
["2016-08-17","C-I-ASI-01-16-5","Contract","Indirect","Belts","ASI-Switzerland","All of them","Back Office","AUCHAN","Preferred","","d","2016-01-01","2017-01-01","YES",70,1,"DDP","CHF","2016-12-31","ee","@@","@","2016-09-01","2016-10-01",2333,"eee","",null,null,null,"DP","BFL-Italy","Services & Sheet Fed","Logistic",null,null,null,null,null,null,null,130,7,null,"ALL",null,"EVIAN","Tactical",3]
["2016-08-17","C-I-ASI-01-16-6","Contract","Indirect","Belts","ASI-Switzerland","All of them","Back Office","BABY GO","Preferred","","e","2016-01-01","2017-01-01","YES",50,1,"DDP","CHF","2017-01-01","e","@","@","2016-09-01","2016-10-01",2132,"ee","",null,null,null,"Drives","BES-Spain","Unknown","Marketing",null,null,null,null,null,null,null,150,8,null,"AMD",null,"INTERMARCHE","Strategic",3]
["2016-08-24","C-I-ASI-01-16-7","Contract","Indirect","Belts","ASI-Switzerland","All of them","Back Office","APPLE","Strategic","","essai quit","2016-01-01","2017-01-01","YES","10 DAYS","0,5","DDP","CHF","2017-01-01","rrr","@","@","2016-09-01","2016-10-10",21332,"aaa","",null,null,null,"Electrical modules","FKG-Germany",null,"Planning",null,null,null,null,null,null,null,170,9,null,"ANG",null,"LECLERC","Tactical",3]
["2016-08-29","A-I-ASI-01-16-1-4","Amendment","Indirect","Belts","ASI-Switzerland","Sheet Fed","HR","APPLE","Strategic","","Avenant - description contrat 3","2016-01-01","2020-12-31","YES","50 DAYS","1","DDP","CHF","2016-12-31","owner 1","owner1@","supervisor1@","2016-09-01","2017-02-01",1230,"place 1","commentaire 1",null,null,null,"Electrical switch cabinet ","BOG-Germany",null,"Procurement",null,null,null,null,null,null,null,190,10,null,"AOA",null,"LEOMAT","Preferred",3]
["2016-08-29","A-I-ASI-05-15-2-5","Amendment","Indirect","Belts","ASI-Switzerland","Sheet Fed","Back Office","APPLE","Strategic","","Avenant - description contrat 4","2015-05-01","2018-01-01","YES","70 DAYS","5","DDP","CHF","2016-02-02","owner 2","owner2@","supervisor2@","2016-08-01","2017-05-01",2222,"place2","commentaire 2",null,null,null,"Electronic","STE-Germany",null,"Production",null,null,null,null,null,null,null,210,11,null,"ARS",null,"NESTEA","Preferred",2]
["2016-08-30","C-I-BSA-01-17-8","Contract","Indirect","IT & Telecoms","BSA-Switzerland","Sheet Fed","Communication","DANONE","Strategic","","Achat test DAnone","2017-01-01","2020-01-01","NO","10 DAYS",1,"DDP","CHF","2018-01-01","dsffds","fdsfsd@","fdsfds21@","2019-01-01","2020-01-01",7852,"fds","",null,null,null,"Enclosure","GEN-United Kingdom",null,"Purchasing",null,null,null,null,null,null,null,230,12,null,"AUD",null,"NESTLE","Preferred",2]
["2016-08-30","C-I-BSA-01-17-9","Contract","Indirect","Human Resources","BSA-Switzerland","Sheet Fed","Communication","BABY GO","Preferred","","Achat test Baby Go","2017-01-01","2020-01-01","NO","10 DAYS",1,"DDP","CHF","2019-01-01","fdsds","fds@","fdsdfs@","2018-01-01","2019-01-01",4500,"fdss","",null,null,null,"Facilities Management","BGL-United Kingdom",null,"Quality",null,null,null,null,null,null,null,250,"13",null,"AWG",null,"NVO","Preferred",2]
["2016-08-31","C-I-BSA-05-17-10","Contract","Indirect","IT & Telecoms","BSA-Switzerland","All of them","Back Office","SONY","Tactical","","Achat test Sony","2017-05-01","2021-01-01","YES","110 DAYS",1,"DDP","CHF","2018-01-01","fds","fssds@","fdds@","2018-01-01","2019-01-01",45785,"ici","",null,null,null,"Factory Supplies","BGS-Denmark",null,"R&D",null,null,null,null,null,null,null,270,null,null,"AZN",null,"SAMSUNG","Strategic",2]
["2016-08-31","A-I-BSA-05-17-10-6","Amendment","Indirect","IT & Telecoms","BSA-Switzerland","All of them","Back Office","SONY","Tactical","","Achat test Sony - modification","2017-01-05","2021-01-01","YES","10 DAYS",1,"DDP","CHF","2018-01-01","fds","fssds@","fdds@","2018-01-01","2019-01-01",10000,"ici","",null,null,null,"Fans","BGV-Russia",null,"Travel",null,null,null,null,null,null,null,290,null,null,"BAM",null,"SONY","Tactical",1]
["2016-08-31","C-I-BSA-02-17-11","Contract","Indirect","IT & Telecoms","BSA-Switzerland","All of them","Back Office","SONY","Tactical","","Achat test Sony V2","2017-02-01","2020-01-01","NO","10 DAYS",1,"DDP","CHF","2018-01-01","dsffds","fdss@","fdsds@","2018-01-01","2019-01-01",785699,"ffds","",null,null,null,"Fluidics","BBN-Belgium",null,null,null,null,null,null,null,null,null,null,null,null,"BBD",null,"SQUALITY","Tactical",2]
["2016-08-31","C-I-BSA-02-17-12","Contract","Indirect","Consulting","BSA-Switzerland","Sheet Fed","Communication","WESTHOUSE","Preferred","","Achat Westhouse","2017-02-01","02.01.2020","NO","20 DAYS","1","DDU","EUR","01.02.2018","fds","fdsds@","oim@","01.03.2018","01.05.2018","458","fg","",null,null,null,"Gears manufacturing","BIS-Turkey",null,null,null,null,null,null,null,null,null,null,null,null,"BDT",null,"UBER","Tactical",2]
["2016-08-31","A-I-BSA-02-17-12-7","Amendment","Indirect","Consulting","BSA-Switzerland","Sheet Fed","Communication","WESTHOUSE","Preferred","","Achat Westhouse - avenant sans changer les dates.","2017-01-02","2020-01-02","NO","20 DAYS","1","DDU","EUR","2018-01-02","fds","fdsds@","oim@","2018-01-03","2018-01-05",458,"fg","",null,null,null,"Heating elements","BPL-Poland",null,null,null,null,null,null,null,null,null,null,null,null,"BGN",null,"WESTHOUSE","Preferred",1]
["2016-08-31","C-I-BSA-02-17-13","Contract","Indirect","Consulting","BSA-Switzerland","Sheet Fed","Communication","UBER","Tactical","","Tets","2017-02-01","2019-03-01","NO","20 DAYS","1","DDU","CHF","2018-02-01","dfsdfs","fdsdfs@","fdsqw@","2018-02-05","2018-09-05",7896,"fdss","",null,null,null,"Human Resources","BEE-Czech Republic",null,null,null,null,null,null,null,null,null,null,null,null,"BHD",null,null,null,2]
["2016-08-31","C-I-BSA-02-17-14","Contract","Indirect","Paint","BSA-Switzerland","Sheet Fed","Facility Management","NVO","Preferred","","Test NVO","2017-02-01","2020-02-01","NO","290 DAYS","13","QWD","CHF","2018-05-01","moi","moi@","lui@","2018-05-01","2018-06-01",963,"fds","",null,null,null,"IT & Telecoms","BGU-United States",null,null,null,null,null,null,null,null,null,null,null,null,"BIF",null,null,null,2]
["2016-08-31","C-D-BSA-02-17-15","Contract","Direct","Chains","BSA-Switzerland","Sheet Fed","Communication","COCA","Tactical","","Test","2017-02-01","2019-02-06","NO","20 DAYS","1","FCA","USD","2018-05-01","fdsds","fdsdsf@","fdsfds@","2018-06-01","2018-09-01",5000,"fdsdfs","",null,null,null,"Kinematics","BBR-Brazil",null,null,null,null,null,null,null,null,null,null,null,null,"BMD",null,null,null,1]
["2016-08-31","A-D-BSA-02-17-15-8","Amendment","Direct","Chains","BSA-Switzerland","Sheet Fed","Communication","COCA","Tactical","","Test- modification-V2 est-ce que ca a créé une ligne ?","2/1/2017","2/6/2019","NO","20 DAYS","1","FCA","USD","5/1/2018","fdsds","fdsdsf@","fdsfds@","6/1/2018","9/1/2018","5000","fdsdfs","",null,null,null,"Labels","BLN-Mexico",null,null,null,null,null,null,null,null,null,null,null,null,"BND"]
["2016-08-31","A-I-ASI-01-16-1-9","Amendment","Indirect","Belts","ASI-Switzerland","Sheet Fed","HR","APPLE","Strategic","","description contrat 1 - avenant 1","2016-01-01","2021-01-01","YES","50 DAYS","1","DDP","CHF","2020-02-01","owner 1","owner1@","supervisor1@","2020-02-01","2020-03-01",5000,"place 1","commentaire 1",null,null,null,"Logistics & Transport","BSL-China",null,null,null,null,null,null,null,null,null,null,null,null,"BOB",null,null,null,3]
["2016-08-31","A-I-ASI-01-16-1-10","Amendment","Indirect","Belts","ASI-Switzerland","Sheet Fed","HR","APPLE","Strategic","","description contrat 1 - avenant 2","2016-01-01","2022-01-01","YES","50 DAYS","1","DDP","CHF","2021-02-01","owner 1","owner1@","supervisor1@","2021-02-01","2021-05-01",70000,"place 1","commentaire 1",null,null,null,"Machine tooling","BTH-Thailand ",null,null,null,null,null,null,null,null,null,null,null,null,"BOV",null,null,null,3]
["2016-08-31","A-I-ASI-01-16-1-11","Amendment","Indirect","Belts","ASI-Switzerland","Sheet Fed","HR","APPLE","Strategic","","description contrat 1 - avenant 3","2016-01-01","2023-01-01","YES","50 DAYS","1","DDP","CHF","2022-02-01","owner 1","owner1@","supervisor1@","2022-04-01","2022-06-01",10000,"place 1","commentaire 1",null,null,null,"Motors","BIN-India",null,null,null,null,null,null,null,null,null,null,null,null,"BRL",null,null,null,3]
["2016-08-31","C-I-BSA-02-17-16","Contract","Indirect","Facilities Management","BSA-Switzerland","All of them","Facility Management","LEOMAT","Preferred","","Test contrat leomat V1","2017-02-01","2020-02-01","NO","10 DAYS",1,"DDP","CHF","2018-05-01","fdsds","fdsfsd@","fdsfsd@","2018-06-01","2018-08-01",5000,"fdsfs","",null,null,null,"Multitechnology modules","BJL-Japan",null,null,null,null,null,null,null,null,null,null,null,null,"BSD",null,null,null,2]
["2016-08-31","A-I-BSA-02-17-16-12","Amendment","Indirect","Facilities Management","BSA-Switzerland","All of them","Facility Management","LEOMAT","Preferred","","Avenant 1 - TEST MODIF","1/2/2017","1/2/2020","NO","10 DAYS",1,"DDP","CHF","1/5/2018","fdsds","fdsfsd@","fdsfsd@","1/6/2018","1/8/2018","5000","fdsfs","",null,null,null,"Optical ","BIA-Indonesia",null,null,null,null,null,null,null,null,null,null,null,null,"BTN",null,null,null,1]
["2016-08-31","A-I-BSA-02-17-16-13","Amendment","Indirect","Facilities Management","BSA-Switzerland","All of them","Facility Management","LEOMAT","Preferred","","Test contrat leomat V1 - 2EME MODIF","2/1/2017","2/1/2020","NO","10 DAYS",1,"DDP","CHF","5/1/2018","fdsds","fdsfsd@","fdsfsd@","6/1/2018","8/1/2018","5000","fdsfs","",null,null,null,"Other electrical components","BMA-Malaysia",null,null,null,null,null,null,null,null,null,null,null,null,"BWP",null,null,null,1]
["2016-08-31","C-I-ASI-02-17-17","Contract","Indirect","Travel","ASI-Switzerland","All of them","Back Office","CONRAD","Preferred","","Test contrat Conrad","2017-02-01","2020-01-02","YES","10 DAYS",1,"DDP","CHF","2018-03-01","fdsfs","fdsfds@","ffds@","2018-04-01","2019-05-01",458,"fdss","",null,null,null,"Other mechanical components","All of them",null,null,null,null,null,null,null,null,null,null,null,null,"BYR",null,null,null,2]
["2016-08-31","A-I-ASI-02-17-17-14","Amendment","Indirect","Travel","ASI-Switzerland","All of them","Back Office","CONRAD","Preferred","","Avenant 1","2017-01-02","2020-01-02","YES","10 DAYS",1,"DDP","CHF","2018-01-03","fdsfs","fdsfds@","ffds@","2018-01-04","2019-01-05",458,"fdss","",null,null,null,"Paint",null,null,null,null,null,null,null,null,null,null,null,null,null,"BZD",null,null,null,1]
["2016-08-31","A-I-ASI-02-17-17-15","Amendment","Indirect","Travel","ASI-Switzerland","All of them","Back Office","CONRAD","Preferred","","Avenant 2","2017-01-02","2020-02-01","YES","10 DAYS",1,"DDP","CHF","2018-01-03","fdsfs","fdsfds@","ffds@","2018-01-04","2019-01-05",458,"fdss","",null,null,null,"PCB",null,null,null,null,null,null,null,null,null,null,null,null,null,"CAD",null,null,null,1]
["2016-08-31","A-I-ASI-02-17-17-16","Amendment","Indirect","Travel","ASI-Switzerland","All of them","Back Office","CONRAD","Preferred","","Test contrat Conrad-test modif","2/1/2017","1/2/2020","YES","10 DAYS",1,"DDP","CHF","3/1/2018","fdsfs","fdsfds@","ffds@","4/1/2018","5/1/2019","458","fdss","",null,null,null,"Peripherical machines",null,null,null,null,null,null,null,null,null,null,null,null,null,"CDF",null,null,null,1]
["2016-08-31","S-D-SAM-05-17-1","SQA","Direct","Communication","SAM-France","Web Fed & Services","IT","SQUALITY","Tactical","contact@squality.fr","Test SQA _ Squality","2017-05-01","2019-05-01","NO","20 DAYS","1","DDU","EUR","2018-02-02","fds","fdsfds@","fdsfds@","2018-10-15","2019-02-01",5000,"ici","",null,null,null,"Plastics and synthetics",null,null,null,null,null,null,null,null,null,null,null,null,null,"CHE"]
["2016-09-05","C-I-BSA-02-17-18","Contract","Indirect","Belts","BSA-Switzerland","Sheet Fed","Communication","COCA","Tactical","","Test lundi 05/09, 11.40","2017-02-01","2019-03-01","YES","10 DAYS",1,"DDP","CHF","2017-05-01","fdsfs","fdsfsd@","fdsfsd@#","2017-06-01","2017-07-01",52,"fsd","",null,null,null,"Pneumatic",null,null,null,null,null,null,null,null,null,null,null,null,null,"CHW",null,null,null,3]
["2016-09-06","C-I-All-02-17-19","Contract","Indirect","Belts","All of them","All of them","Back Office","APPLE","Strategic","","Test CCM","2017-02-01","2020-02-01","YES","10 DAYS",1,"DDP","EUR","2018-02-01","fsdfds","fdsfds@","ffdsfds@","2019-09-01","2019-10-01",4,"fdsfdds","",null,null,null,"Podium",null,null,null,null,null,null,null,null,null,null,null,null,null,"CLF",null,null,null,3]
["2016-09-06","C-I-ASI-05-17-20","Contract","Indirect","Belts","ASI-Switzerland","All of them","Back Office","APPLE","Strategic","","Test F89","2017-05-01","2018-06-01","YES","10 DAYS","2","DDU","EUR","2017-08-01","01092017","fdsdfs@","fdsfds@","2018-02-01","2018-03-01",45,"fds","",null,null,null,"Podiums ",null,null,null,null,null,null,null,null,null,null,null,null,null,"CLP",null,null,null,3]
["2016-09-16","R-I-BAM-05-17-1","Rolling contract","Indirect","Chains","BAM-Tunisia","Web Fed","IP / Legal","EVIAN","Tactical","contact@evian.com","test rolling contract Evian - MODIF DATE DE FIN ET VALEUR","2017-05-01","2027-12-01","NO","20 DAYS","3","FCA","EUR","05.09.2017","luigi","luigi@hotmail.com","mario.bross@nintendo.com","01.10.2018","01.12.2018","50000","ici","",null,null,null,"Power",null,null,null,null,null,null,null,null,null,null,null,null,null,"CNH",null,null,null,2]
["2016-09-07","A-I-BSA-02-15-21-17","Amendment","Indirect","IT & Telecoms","BSA-Switzerland","Sheet Fed","Communication","UBER","Tactical","","Test nouveau contrat UBER - MODIF ending date + doc value","2015-02-01","2020-05-01","NO","30 DAYS","2","EXW","USD","2018-02-01","moi","moi@","lui@","2017-10-01","2017-12-01",5000,"La bas","",null,null,null,"Prismatic",null,null,null,null,null,null,null,null,null,null,null,null,null,"CNY",null,null,null,1]
["2016-09-07","C-I-BSA-02-17-22","Contract","Indirect","Communication","BSA-Switzerland","Sheet Fed","Communication","COCA","Tactical","","Test com coca","2017-02-01","2020-05-05","NO","30 DAYS","2","EXW","EUR","2018-01-01","fdsds","fdsfds@","gdsfs@","2019-10-01","2019-12-01",5000,"fdsfs","",null,null,null,"Prismatic Milling",null,null,null,null,null,null,null,null,null,null,null,null,null,"COP",null,null,null,2]
["2016-09-07","A-I-BSA-02-17-22-18","Amendment","Indirect","Communication","BSA-Switzerland","Sheet Fed","Communication","COCA","Tactical","","Test com coca - modif date fin","2017-02-01","2020-05-05","NO","30 DAYS","2","EXW","EUR","2018-01-01","fdsds","fdsfds@","gdsfs@","2019-10-01","2019-12-01",5000,"fdsfs","",null,null,null,"R&D Projects",null,null,null,null,null,null,null,null,null,null,null,null,null,"COU",null,null,null,1]
["2016-09-12","A-I-BSA-02-17-12-19","Amendment","Indirect","Consulting","BSA-Switzerland","Sheet Fed","Communication","WESTHOUSE","Preferred","","Achat Westhouse - avenant 1","2017-02-01","2020-01-02","NO","20 DAYS","1","DDU","EUR","2018-02-01","fds","fdsds@","oim@","2018-03-01","2018-05-01",458,"fg","",null,null,null,"Raw cables and accessories ",null,null,null,null,null,null,null,null,null,null,null,null,null,"CRC",null,null,null,1]
["2016-09-12","A-I-BSA-02-17-12-20","Amendment","Indirect","Consulting","BSA-Switzerland","Sheet Fed","Communication","WESTHOUSE","Preferred","","Achat Westhouse - avenant 2","2017-02-01","2020-01-02","NO","20 DAYS","1","DDU","EUR","2018-02-01","fds","fdsds@","oim@","2018-03-01","2018-05-01",458,"fg","",null,null,null,"Raw material",null,null,null,null,null,null,null,null,null,null,null,null,null,"CUC",null,null,null,1]
[null,null,null,null,null,null,null,null,null,null,null,null,null,null,null,null,null,null,null,null,null,null,null,null,null,null,null,null,null,null,null,"Safety ",null,null,null,null,null,null,null,null,null,null,null,null,null,"CUP"]
[null,null,null,null,null,null,null,null,null,null,null,null,null,null,null,null,null,null,null,null,null,null,null,null,null,null,null,null,null,null,null,"Screws",null,null,null,null,null,null,null,null,null,null,null,null,null,"CVE"]
[null,null,null,null,null,null,null,null,null,null,null,null,null,null,null,null,null,null,null,null,null,null,null,null,null,null,null,null,null,null,null,"Sheet metal work",null,null,null,null,null,null,null,null,null,null,null,null,null,"CZK"]
[null,null,null,null,null,null,null,null,null,null,null,null,null,null,null,null,null,null,null,null,null,null,null,null,null,null,null,null,null,null,null,"Springs",null,null,null,null,null,null,null,null,null,null,null,null,null,"DJF"]
[null,null,null,null,null,null,null,null,null,null,null,null,null,null,null,null,null,null,null,null,null,null,null,null,null,null,null,null,null,null,null,"Steel casting ",null,null,null,null,null,null,null,null,null,null,null,null,null,"DKK"]
[null,null,null,null,null,null,null,null,null,null,null,null,null,null,null,null,null,null,null,null,null,null,null,null,null,null,null,null,null,null,null,"Sub-categ",null,null,null,null,null,null,null,null,null,null,null,null,null,"DOP"]
[null,null,null,null,null,null,null,null,null,null,null,null,null,null,null,null,null,null,null,null,null,null,null,null,null,null,null,null,null,null,null,"Synthetic",null,null,null,null,null,null,null,null,null,null,null,null,null,"DZD"]
[null,null,null,null,null,null,null,null,null,null,null,null,null,null,null,null,null,null,null,null,null,null,null,null,null,null,null,null,null,null,null,"Travel",null,null,null,null,null,null,null,null,null,null,null,null,null,"EGP"]
[null,null,null,null,null,null,null,null,null,null,null,null,null,null,null,null,null,null,null,null,null,null,null,null,null,null,null,null,null,null,null,null,null,null,null,null,null,null,null,null,null,null,null,null,null,"ERN"]
[null,null,null,null,null,null,null,null,null,null,null,null,null,null,null,null,null,null,null,null,null,null,null,null,null,null,null,null,null,null,null,null,null,null,null,null,null,null,null,null,null,null,null,null,null,"ETB"]
[null,null,null,null,null,null,null,null,null,null,null,null,null,null,null,null,null,null,null,null,null,null,null,null,null,null,null,null,null,null,null,null,null,null,null,null,null,null,null,null,null,null,null,null,null,"FJD"]
[null,null,null,null,null,null,null,null,null,null,null,null,null,null,null,null,null,null,null,null,null,null,null,null,null,null,null,null,null,null,null,null,null,null,null,null,null,null,null,null,null,null,null,null,null,"FKP"]
[null,null,null,null,null,null,null,null,null,null,null,null,null,null,null,null,null,null,null,null,null,null,null,null,null,null,null,null,null,null,null,null,null,null,null,null,null,null,null,null,null,null,null,null,null,"GEL"]
[null,null,null,null,null,null,null,null,null,null,null,null,null,null,null,null,null,null,null,null,null,null,null,null,null,null,null,null,null,null,null,null,null,null,null,null,null,null,null,null,null,null,null,null,null,"GHS"]
[null,null,null,null,null,null,null,null,null,null,null,null,null,null,null,null,null,null,null,null,null,null,null,null,null,null,null,null,null,null,null,null,null,null,null,null,null,null,null,null,null,null,null,null,null,"GIP"]
[null,null,null,null,null,null,null,null,null,null,null,null,null,null,null,null,null,null,null,null,null,null,null,null,null,null,null,null,null,null,null,null,null,null,null,null,null,null,null,null,null,null,null,null,null,"GMD"]
[null,null,null,null,null,null,null,null,null,null,null,null,null,null,null,null,null,null,null,null,null,null,null,null,null,null,null,null,null,null,null,null,null,null,null,null,null,null,null,null,null,null,null,null,null,"GNF"]
[null,null,null,null,null,null,null,null,null,null,null,null,null,null,null,null,null,null,null,null,null,null,null,null,null,null,null,null,null,null,null,null,null,null,null,null,null,null,null,null,null,null,null,null,null,"GTQ"]
[null,null,null,null,null,null,null,null,null,null,null,null,null,null,null,null,null,null,null,null,null,null,null,null,null,null,null,null,null,null,null,null,null,null,null,null,null,null,null,null,null,null,null,null,null,"GYD"]
[null,null,null,null,null,null,null,null,null,null,null,null,null,null,null,null,null,null,null,null,null,null,null,null,null,null,null,null,null,null,null,null,null,null,null,null,null,null,null,null,null,null,null,null,null,"HKD"]
[null,null,null,null,null,null,null,null,null,null,null,null,null,null,null,null,null,null,null,null,null,null,null,null,null,null,null,null,null,null,null,null,null,null,null,null,null,null,null,null,null,null,null,null,null,"HNL"]
[null,null,null,null,null,null,null,null,null,null,null,null,null,null,null,null,null,null,null,null,null,null,null,null,null,null,null,null,null,null,null,null,null,null,null,null,null,null,null,null,null,null,null,null,null,"HRK"]
[null,null,null,null,null,null,null,null,null,null,null,null,null,null,null,null,null,null,null,null,null,null,null,null,null,null,null,null,null,null,null,null,null,null,null,null,null,null,null,null,null,null,null,null,null,"HTG"]
[null,null,null,null,null,null,null,null,null,null,null,null,null,null,null,null,null,null,null,null,null,null,null,null,null,null,null,null,null,null,null,null,null,null,null,null,null,null,null,null,null,null,null,null,null,"HUF"]
[null,null,null,null,null,null,null,null,null,null,null,null,null,null,null,null,null,null,null,null,null,null,null,null,null,null,null,null,null,null,null,null,null,null,null,null,null,null,null,null,null,null,null,null,null,"IDR"]
[null,null,null,null,null,null,null,null,null,null,null,null,null,null,null,null,null,null,null,null,null,null,null,null,null,null,null,null,null,null,null,null,null,null,null,null,null,null,null,null,null,null,null,null,null,"ILS"]
[null,null,null,null,null,null,null,null,null,null,null,null,null,null,null,null,null,null,null,null,null,null,null,null,null,null,null,null,null,null,null,null,null,null,null,null,null,null,null,null,null,null,null,null,null,"INR"]
[null,null,null,null,null,null,null,null,null,null,null,null,null,null,null,null,null,null,null,null,null,null,null,null,null,null,null,null,null,null,null,null,null,null,null,null,null,null,null,null,null,null,null,null,null,"IQD"]
[null,null,null,null,null,null,null,null,null,null,null,null,null,null,null,null,null,null,null,null,null,null,null,null,null,null,null,null,null,null,null,null,null,null,null,null,null,null,null,null,null,null,null,null,null,"IRR"]
[null,null,null,null,null,null,null,null,null,null,null,null,null,null,null,null,null,null,null,null,null,null,null,null,null,null,null,null,null,null,null,null,null,null,null,null,null,null,null,null,null,null,null,null,null,"ISK"]
[null,null,null,null,null,null,null,null,null,null,null,null,null,null,null,null,null,null,null,null,null,null,null,null,null,null,null,null,null,null,null,null,null,null,null,null,null,null,null,null,null,null,null,null,null,"JMD"]
[null,null,null,null,null,null,null,null,null,null,null,null,null,null,null,null,null,null,null,null,null,null,null,null,null,null,null,null,null,null,null,null,null,null,null,null,null,null,null,null,null,null,null,null,null,"JOD"]
[null,null,null,null,null,null,null,null,null,null,null,null,null,null,null,null,null,null,null,null,null,null,null,null,null,null,null,null,null,null,null,null,null,null,null,null,null,null,null,null,null,null,null,null,null,"JPY"]
[null,null,null,null,null,null,null,null,null,null,null,null,null,null,null,null,null,null,null,null,null,null,null,null,null,null,null,null,null,null,null,null,null,null,null,null,null,null,null,null,null,null,null,null,null,"KES"]
[null,null,null,null,null,null,null,null,null,null,null,null,null,null,null,null,null,null,null,null,null,null,null,null,null,null,null,null,null,null,null,null,null,null,null,null,null,null,null,null,null,null,null,null,null,"KGS"]
[null,null,null,null,null,null,null,null,null,null,null,null,null,null,null,null,null,null,null,null,null,null,null,null,null,null,null,null,null,null,null,null,null,null,null,null,null,null,null,null,null,null,null,null,null,"KHR"]
[null,null,null,null,null,null,null,null,null,null,null,null,null,null,null,null,null,null,null,null,null,null,null,null,null,null,null,null,null,null,null,null,null,null,null,null,null,null,null,null,null,null,null,null,null,"KMF"]
[null,null,null,null,null,null,null,null,null,null,null,null,null,null,null,null,null,null,null,null,null,null,null,null,null,null,null,null,null,null,null,null,null,null,null,null,null,null,null,null,null,null,null,null,null,"KPW"]
[null,null,null,null,null,null,null,null,null,null,null,null,null,null,null,null,null,null,null,null,null,null,null,null,null,null,null,null,null,null,null,null,null,null,null,null,null,null,null,null,null,null,null,null,null,"KRW"]
[null,null,null,null,null,null,null,null,null,null,null,null,null,null,null,null,null,null,null,null,null,null,null,null,null,null,null,null,null,null,null,null,null,null,null,null,null,null,null,null,null,null,null,null,null,"KWD"]
[null,null,null,null,null,null,null,null,null,null,null,null,null,null,null,null,null,null,null,null,null,null,null,null,null,null,null,null,null,null,null,null,null,null,null,null,null,null,null,null,null,null,null,null,null,"KYD"]
[null,null,null,null,null,null,null,null,null,null,null,null,null,null,null,null,null,null,null,null,null,null,null,null,null,null,null,null,null,null,null,null,null,null,null,null,null,null,null,null,null,null,null,null,null,"KZT"]
[null,null,null,null,null,null,null,null,null,null,null,null,null,null,null,null,null,null,null,null,null,null,null,null,null,null,null,null,null,null,null,null,null,null,null,null,null,null,null,null,null,null,null,null,null,"LAK"]
[null,null,null,null,null,null,null,null,null,null,null,null,null,null,null,null,null,null,null,null,null,null,null,null,null,null,null,null,null,null,null,null,null,null,null,null,null,null,null,null,null,null,null,null,null,"LBP"]
[null,null,null,null,null,null,null,null,null,null,null,null,null,null,null,null,null,null,null,null,null,null,null,null,null,null,null,null,null,null,null,null,null,null,null,null,null,null,null,null,null,null,null,null,null,"LKR"]
[null,null,null,null,null,null,null,null,null,null,null,null,null,null,null,null,null,null,null,null,null,null,null,null,null,null,null,null,null,null,null,null,null,null,null,null,null,null,null,null,null,null,null,null,null,"LRD"]
[null,null,null,null,null,null,null,null,null,null,null,null,null,null,null,null,null,null,null,null,null,null,null,null,null,null,null,null,null,null,null,null,null,null,null,null,null,null,null,null,null,null,null,null,null,"LSL"]
[null,null,null,null,null,null,null,null,null,null,null,null,null,null,null,null,null,null,null,null,null,null,null,null,null,null,null,null,null,null,null,null,null,null,null,null,null,null,null,null,null,null,null,null,null,"LTL"]
[null,null,null,null,null,null,null,null,null,null,null,null,null,null,null,null,null,null,null,null,null,null,null,null,null,null,null,null,null,null,null,null,null,null,null,null,null,null,null,null,null,null,null,null,null,"LYD"]
[null,null,null,null,null,null,null,null,null,null,null,null,null,null,null,null,null,null,null,null,null,null,null,null,null,null,null,null,null,null,null,null,null,null,null,null,null,null,null,null,null,null,null,null,null,"MAD"]
[null,null,null,null,null,null,null,null,null,null,null,null,null,null,null,null,null,null,null,null,null,null,null,null,null,null,null,null,null,null,null,null,null,null,null,null,null,null,null,null,null,null,null,null,null,"MDL"]
[null,null,null,null,null,null,null,null,null,null,null,null,null,null,null,null,null,null,null,null,null,null,null,null,null,null,null,null,null,null,null,null,null,null,null,null,null,null,null,null,null,null,null,null,null,"MGA"]
[null,null,null,null,null,null,null,null,null,null,null,null,null,null,null,null,null,null,null,null,null,null,null,null,null,null,null,null,null,null,null,null,null,null,null,null,null,null,null,null,null,null,null,null,null,"MKD"]
[null,null,null,null,null,null,null,null,null,null,null,null,null,null,null,null,null,null,null,null,null,null,null,null,null,null,null,null,null,null,null,null,null,null,null,null,null,null,null,null,null,null,null,null,null,"MMK"]
[null,null,null,null,null,null,null,null,null,null,null,null,null,null,null,null,null,null,null,null,null,null,null,null,null,null,null,null,null,null,null,null,null,null,null,null,null,null,null,null,null,null,null,null,null,"MNT"]
[null,null,null,null,null,null,null,null,null,null,null,null,null,null,null,null,null,null,null,null,null,null,null,null,null,null,null,null,null,null,null,null,null,null,null,null,null,null,null,null,null,null,null,null,null,"MOP"]
[null,null,null,null,null,null,null,null,null,null,null,null,null,null,null,null,null,null,null,null,null,null,null,null,null,null,null,null,null,null,null,null,null,null,null,null,null,null,null,null,null,null,null,null,null,"MRO"]
[null,null,null,null,null,null,null,null,null,null,null,null,null,null,null,null,null,null,null,null,null,null,null,null,null,null,null,null,null,null,null,null,null,null,null,null,null,null,null,null,null,null,null,null,null,"MUR"]
[null,null,null,null,null,null,null,null,null,null,null,null,null,null,null,null,null,null,null,null,null,null,null,null,null,null,null,null,null,null,null,null,null,null,null,null,null,null,null,null,null,null,null,null,null,"MVR"]
[null,null,null,null,null,null,null,null,null,null,null,null,null,null,null,null,null,null,null,null,null,null,null,null,null,null,null,null,null,null,null,null,null,null,null,null,null,null,null,null,null,null,null,null,null,"MWK"]
[null,null,null,null,null,null,null,null,null,null,null,null,null,null,null,null,null,null,null,null,null,null,null,null,null,null,null,null,null,null,null,null,null,null,null,null,null,null,null,null,null,null,null,null,null,"MXN"]
[null,null,null,null,null,null,null,null,null,null,null,null,null,null,null,null,null,null,null,null,null,null,null,null,null,null,null,null,null,null,null,null,null,null,null,null,null,null,null,null,null,null,null,null,null,"MXV"]
[null,null,null,null,null,null,null,null,null,null,null,null,null,null,null,null,null,null,null,null,null,null,null,null,null,null,null,null,null,null,null,null,null,null,null,null,null,null,null,null,null,null,null,null,null,"MYR"]
[null,null,null,null,null,null,null,null,null,null,null,null,null,null,null,null,null,null,null,null,null,null,null,null,null,null,null,null,null,null,null,null,null,null,null,null,null,null,null,null,null,null,null,null,null,"MZN"]
[null,null,null,null,null,null,null,null,null,null,null,null,null,null,null,null,null,null,null,null,null,null,null,null,null,null,null,null,null,null,null,null,null,null,null,null,null,null,null,null,null,null,null,null,null,"NAD"]
[null,null,null,null,null,null,null,null,null,null,null,null,null,null,null,null,null,null,null,null,null,null,null,null,null,null,null,null,null,null,null,null,null,null,null,null,null,null,null,null,null,null,null,null,null,"NGN"]
[null,null,null,null,null,null,null,null,null,null,null,null,null,null,null,null,null,null,null,null,null,null,null,null,null,null,null,null,null,null,null,null,null,null,null,null,null,null,null,null,null,null,null,null,null,"NIO"]
[null,null,null,null,null,null,null,null,null,null,null,null,null,null,null,null,null,null,null,null,null,null,null,null,null,null,null,null,null,null,null,null,null,null,null,null,null,null,null,null,null,null,null,null,null,"NOK"]
[null,null,null,null,null,null,null,null,null,null,null,null,null,null,null,null,null,null,null,null,null,null,null,null,null,null,null,null,null,null,null,null,null,null,null,null,null,null,null,null,null,null,null,null,null,"NPR"]
[null,null,null,null,null,null,null,null,null,null,null,null,null,null,null,null,null,null,null,null,null,null,null,null,null,null,null,null,null,null,null,null,null,null,null,null,null,null,null,null,null,null,null,null,null,"NZD"]
[null,null,null,null,null,null,null,null,null,null,null,null,null,null,null,null,null,null,null,null,null,null,null,null,null,null,null,null,null,null,null,null,null,null,null,null,null,null,null,null,null,null,null,null,null,"OMR"]
[null,null,null,null,null,null,null,null,null,null,null,null,null,null,null,null,null,null,null,null,null,null,null,null,null,null,null,null,null,null,null,null,null,null,null,null,null,null,null,null,null,null,null,null,null,"PAB"]
[null,null,null,null,null,null,null,null,null,null,null,null,null,null,null,null,null,null,null,null,null,null,null,null,null,null,null,null,null,null,null,null,null,null,null,null,null,null,null,null,null,null,null,null,null,"PEN"]
[null,null,null,null,null,null,null,null,null,null,null,null,null,null,null,null,null,null,null,null,null,null,null,null,null,null,null,null,null,null,null,null,null,null,null,null,null,null,null,null,null,null,null,null,null,"PGK"]
[null,null,null,null,null,null,null,null,null,null,null,null,null,null,null,null,null,null,null,null,null,null,null,null,null,null,null,null,null,null,null,null,null,null,null,null,null,null,null,null,null,null,null,null,null,"PHP"]
[null,null,null,null,null,null,null,null,null,null,null,null,null,null,null,null,null,null,null,null,null,null,null,null,null,null,null,null,null,null,null,null,null,null,null,null,null,null,null,null,null,null,null,null,null,"PKR"]
[null,null,null,null,null,null,null,null,null,null,null,null,null,null,null,null,null,null,null,null,null,null,null,null,null,null,null,null,null,null,null,null,null,null,null,null,null,null,null,null,null,null,null,null,null,"PLN"]
[null,null,null,null,null,null,null,null,null,null,null,null,null,null,null,null,null,null,null,null,null,null,null,null,null,null,null,null,null,null,null,null,null,null,null,null,null,null,null,null,null,null,null,null,null,"PYG"]
[null,null,null,null,null,null,null,null,null,null,null,null,null,null,null,null,null,null,null,null,null,null,null,null,null,null,null,null,null,null,null,null,null,null,null,null,null,null,null,null,null,null,null,null,null,"QAR"]
[null,null,null,null,null,null,null,null,null,null,null,null,null,null,null,null,null,null,null,null,null,null,null,null,null,null,null,null,null,null,null,null,null,null,null,null,null,null,null,null,null,null,null,null,null,"RON"]
[null,null,null,null,null,null,null,null,null,null,null,null,null,null,null,null,null,null,null,null,null,null,null,null,null,null,null,null,null,null,null,null,null,null,null,null,null,null,null,null,null,null,null,null,null,"RSD"]
[null,null,null,null,null,null,null,null,null,null,null,null,null,null,null,null,null,null,null,null,null,null,null,null,null,null,null,null,null,null,null,null,null,null,null,null,null,null,null,null,null,null,null,null,null,"RUB"]
[null,null,null,null,null,null,null,null,null,null,null,null,null,null,null,null,null,null,null,null,null,null,null,null,null,null,null,null,null,null,null,null,null,null,null,null,null,null,null,null,null,null,null,null,null,"RWF"]
[null,null,null,null,null,null,null,null,null,null,null,null,null,null,null,null,null,null,null,null,null,null,null,null,null,null,null,null,null,null,null,null,null,null,null,null,null,null,null,null,null,null,null,null,null,"SAR"]
[null,null,null,null,null,null,null,null,null,null,null,null,null,null,null,null,null,null,null,null,null,null,null,null,null,null,null,null,null,null,null,null,null,null,null,null,null,null,null,null,null,null,null,null,null,"SBD"]
[null,null,null,null,null,null,null,null,null,null,null,null,null,null,null,null,null,null,null,null,null,null,null,null,null,null,null,null,null,null,null,null,null,null,null,null,null,null,null,null,null,null,null,null,null,"SCR"]
[null,null,null,null,null,null,null,null,null,null,null,null,null,null,null,null,null,null,null,null,null,null,null,null,null,null,null,null,null,null,null,null,null,null,null,null,null,null,null,null,null,null,null,null,null,"SDG"]
[null,null,null,null,null,null,null,null,null,null,null,null,null,null,null,null,null,null,null,null,null,null,null,null,null,null,null,null,null,null,null,null,null,null,null,null,null,null,null,null,null,null,null,null,null,"SEK"]
[null,null,null,null,null,null,null,null,null,null,null,null,null,null,null,null,null,null,null,null,null,null,null,null,null,null,null,null,null,null,null,null,null,null,null,null,null,null,null,null,null,null,null,null,null,"SGD"]
[null,null,null,null,null,null,null,null,null,null,null,null,null,null,null,null,null,null,null,null,null,null,null,null,null,null,null,null,null,null,null,null,null,null,null,null,null,null,null,null,null,null,null,null,null,"SHP"]
[null,null,null,null,null,null,null,null,null,null,null,null,null,null,null,null,null,null,null,null,null,null,null,null,null,null,null,null,null,null,null,null,null,null,null,null,null,null,null,null,null,null,null,null,null,"SLL"]
[null,null,null,null,null,null,null,null,null,null,null,null,null,null,null,null,null,null,null,null,null,null,null,null,null,null,null,null,null,null,null,null,null,null,null,null,null,null,null,null,null,null,null,null,null,"SOS"]
[null,null,null,null,null,null,null,null,null,null,null,null,null,null,null,null,null,null,null,null,null,null,null,null,null,null,null,null,null,null,null,null,null,null,null,null,null,null,null,null,null,null,null,null,null,"SRD"]
[null,null,null,null,null,null,null,null,null,null,null,null,null,null,null,null,null,null,null,null,null,null,null,null,null,null,null,null,null,null,null,null,null,null,null,null,null,null,null,null,null,null,null,null,null,"SSP"]
[null,null,null,null,null,null,null,null,null,null,null,null,null,null,null,null,null,null,null,null,null,null,null,null,null,null,null,null,null,null,null,null,null,null,null,null,null,null,null,null,null,null,null,null,null,"STD"]
[null,null,null,null,null,null,null,null,null,null,null,null,null,null,null,null,null,null,null,null,null,null,null,null,null,null,null,null,null,null,null,null,null,null,null,null,null,null,null,null,null,null,null,null,null,"SYP"]
[null,null,null,null,null,null,null,null,null,null,null,null,null,null,null,null,null,null,null,null,null,null,null,null,null,null,null,null,null,null,null,null,null,null,null,null,null,null,null,null,null,null,null,null,null,"SZL"]
[null,null,null,null,null,null,null,null,null,null,null,null,null,null,null,null,null,null,null,null,null,null,null,null,null,null,null,null,null,null,null,null,null,null,null,null,null,null,null,null,null,null,null,null,null,"THB"]
[null,null,null,null,null,null,null,null,null,null,null,null,null,null,null,null,null,null,null,null,null,null,null,null,null,null,null,null,null,null,null,null,null,null,null,null,null,null,null,null,null,null,null,null,null,"TJS"]
[null,null,null,null,null,null,null,null,null,null,null,null,null,null,null,null,null,null,null,null,null,null,null,null,null,null,null,null,null,null,null,null,null,null,null,null,null,null,null,null,null,null,null,null,null,"TMT"]
[null,null,null,null,null,null,null,null,null,null,null,null,null,null,null,null,null,null,null,null,null,null,null,null,null,null,null,null,null,null,null,null,null,null,null,null,null,null,null,null,null,null,null,null,null,"TND"]
[null,null,null,null,null,null,null,null,null,null,null,null,null,null,null,null,null,null,null,null,null,null,null,null,null,null,null,null,null,null,null,null,null,null,null,null,null,null,null,null,null,null,null,null,null,"TOP"]
[null,null,null,null,null,null,null,null,null,null,null,null,null,null,null,null,null,null,null,null,null,null,null,null,null,null,null,null,null,null,null,null,null,null,null,null,null,null,null,null,null,null,null,null,null,"TRY"]
[null,null,null,null,null,null,null,null,null,null,null,null,null,null,null,null,null,null,null,null,null,null,null,null,null,null,null,null,null,null,null,null,null,null,null,null,null,null,null,null,null,null,null,null,null,"TTD"]
[null,null,null,null,null,null,null,null,null,null,null,null,null,null,null,null,null,null,null,null,null,null,null,null,null,null,null,null,null,null,null,null,null,null,null,null,null,null,null,null,null,null,null,null,null,"TWD"]
[null,null,null,null,null,null,null,null,null,null,null,null,null,null,null,null,null,null,null,null,null,null,null,null,null,null,null,null,null,null,null,null,null,null,null,null,null,null,null,null,null,null,null,null,null,"TZS"]
[null,null,null,null,null,null,null,null,null,null,null,null,null,null,null,null,null,null,null,null,null,null,null,null,null,null,null,null,null,null,null,null,null,null,null,null,null,null,null,null,null,null,null,null,null,"UAH"]
[null,null,null,null,null,null,null,null,null,null,null,null,null,null,null,null,null,null,null,null,null,null,null,null,null,null,null,null,null,null,null,null,null,null,null,null,null,null,null,null,null,null,null,null,null,"UGX"]
[null,null,null,null,null,null,null,null,null,null,null,null,null,null,null,null,null,null,null,null,null,null,null,null,null,null,null,null,null,null,null,null,null,null,null,null,null,null,null,null,null,null,null,null,null,"USN"]
[null,null,null,null,null,null,null,null,null,null,null,null,null,null,null,null,null,null,null,null,null,null,null,null,null,null,null,null,null,null,null,null,null,null,null,null,null,null,null,null,null,null,null,null,null,"USS"]
[null,null,null,null,null,null,null,null,null,null,null,null,null,null,null,null,null,null,null,null,null,null,null,null,null,null,null,null,null,null,null,null,null,null,null,null,null,null,null,null,null,null,null,null,null,"UYI"]
[null,null,null,null,null,null,null,null,null,null,null,null,null,null,null,null,null,null,null,null,null,null,null,null,null,null,null,null,null,null,null,null,null,null,null,null,null,null,null,null,null,null,null,null,null,"UYU"]
[null,null,null,null,null,null,null,null,null,null,null,null,null,null,null,null,null,null,null,null,null,null,null,null,null,null,null,null,null,null,null,null,null,null,null,null,null,null,null,null,null,null,null,null,null,"UZS"]
[null,null,null,null,null,null,null,null,null,null,null,null,null,null,null,null,null,null,null,null,null,null,null,null,null,null,null,null,null,null,null,null,null,null,null,null,null,null,null,null,null,null,null,null,null,"VEF"]
[null,null,null,null,null,null,null,null,null,null,null,null,null,null,null,null,null,null,null,null,null,null,null,null,null,null,null,null,null,null,null,null,null,null,null,null,null,null,null,null,null,null,null,null,null,"VND"]
[null,null,null,null,null,null,null,null,null,null,null,null,null,null,null,null,null,null,null,null,null,null,null,null,null,null,null,null,null,null,null,null,null,null,null,null,null,null,null,null,null,null,null,null,null,"VUV"]
[null,null,null,null,null,null,null,null,null,null,null,null,null,null,null,null,null,null,null,null,null,null,null,null,null,null,null,null,null,null,null,null,null,null,null,null,null,null,null,null,null,null,null,null,null,"WST"]
[null,null,null,null,null,null,null,null,null,null,null,null,null,null,null,null,null,null,null,null,null,null,null,null,null,null,null,null,null,null,null,null,null,null,null,null,null,null,null,null,null,null,null,null,null,"XAF"]
[null,null,null,null,null,null,null,null,null,null,null,null,null,null,null,null,null,null,null,null,null,null,null,null,null,null,null,null,null,null,null,null,null,null,null,null,null,null,null,null,null,null,null,null,null,"XAG"]
[null,null,null,null,null,null,null,null,null,null,null,null,null,null,null,null,null,null,null,null,null,null,null,null,null,null,null,null,null,null,null,null,null,null,null,null,null,null,null,null,null,null,null,null,null,"XAU"]
[null,null,null,null,null,null,null,null,null,null,null,null,null,null,null,null,null,null,null,null,null,null,null,null,null,null,null,null,null,null,null,null,null,null,null,null,null,null,null,null,null,null,null,null,null,"XBA"]
[null,null,null,null,null,null,null,null,null,null,null,null,null,null,null,null,null,null,null,null,null,null,null,null,null,null,null,null,null,null,null,null,null,null,null,null,null,null,null,null,null,null,null,null,null,"XBB"]
[null,null,null,null,null,null,null,null,null,null,null,null,null,null,null,null,null,null,null,null,null,null,null,null,null,null,null,null,null,null,null,null,null,null,null,null,null,null,null,null,null,null,null,null,null,"XBC"]
[null,null,null,null,null,null,null,null,null,null,null,null,null,null,null,null,null,null,null,null,null,null,null,null,null,null,null,null,null,null,null,null,null,null,null,null,null,null,null,null,null,null,null,null,null,"XBD"]
[null,null,null,null,null,null,null,null,null,null,null,null,null,null,null,null,null,null,null,null,null,null,null,null,null,null,null,null,null,null,null,null,null,null,null,null,null,null,null,null,null,null,null,null,null,"XCD"]
[null,null,null,null,null,null,null,null,null,null,null,null,null,null,null,null,null,null,null,null,null,null,null,null,null,null,null,null,null,null,null,null,null,null,null,null,null,null,null,null,null,null,null,null,null,"XDR"]
[null,null,null,null,null,null,null,null,null,null,null,null,null,null,null,null,null,null,null,null,null,null,null,null,null,null,null,null,null,null,null,null,null,null,null,null,null,null,null,null,null,null,null,null,null,"XFU"]
[null,null,null,null,null,null,null,null,null,null,null,null,null,null,null,null,null,null,null,null,null,null,null,null,null,null,null,null,null,null,null,null,null,null,null,null,null,null,null,null,null,null,null,null,null,"XOF"]
[null,null,null,null,null,null,null,null,null,null,null,null,null,null,null,null,null,null,null,null,null,null,null,null,null,null,null,null,null,null,null,null,null,null,null,null,null,null,null,null,null,null,null,null,null,"XPD"]
[null,null,null,null,null,null,null,null,null,null,null,null,null,null,null,null,null,null,null,null,null,null,null,null,null,null,null,null,null,null,null,null,null,null,null,null,null,null,null,null,null,null,null,null,null,"XPF"]
[null,null,null,null,null,null,null,null,null,null,null,null,null,null,null,null,null,null,null,null,null,null,null,null,null,null,null,null,null,null,null,null,null,null,null,null,null,null,null,null,null,null,null,null,null,"XPT"]
[null,null,null,null,null,null,null,null,null,null,null,null,null,null,null,null,null,null,null,null,null,null,null,null,null,null,null,null,null,null,null,null,null,null,null,null,null,null,null,null,null,null,null,null,null,"XSU"]
[null,null,null,null,null,null,null,null,null,null,null,null,null,null,null,null,null,null,null,null,null,null,null,null,null,null,null,null,null,null,null,null,null,null,null,null,null,null,null,null,null,null,null,null,null,"XTS"]
[null,null,null,null,null,null,null,null,null,null,null,null,null,null,null,null,null,null,null,null,null,null,null,null,null,null,null,null,null,null,null,null,null,null,null,null,null,null,null,null,null,null,null,null,null,"XUA"]
[null,null,null,null,null,null,null,null,null,null,null,null,null,null,null,null,null,null,null,null,null,null,null,null,null,null,null,null,null,null,null,null,null,null,null,null,null,null,null,null,null,null,null,null,null,"XXX"]
[null,null,null,null,null,null,null,null,null,null,null,null,null,null,null,null,null,null,null,null,null,null,null,null,null,null,null,null,null,null,null,null,null,null,null,null,null,null,null,null,null,null,null,null,null,"YER"]
[null,null,null,null,null,null,null,null,null,null,null,null,null,null,null,null,null,null,null,null,null,null,null,null,null,null,null,null,null,null,null,null,null,null,null,null,null,null,null,null,null,null,null,null,null,"ZAR"]
[null,null,null,null,null,null,null,null,null,null,null,null,null,null,null,null,null,null,null,null,null,null,null,null,null,null,null,null,null,null,null,null,null,null,null,null,null,null,null,null,null,null,null,null,null,"ZMW"]
[null,null,null,null,null,null,null,null,null,null,null,null,null,null,null,null,null,null,null,null,null,null,null,null,null,null,null,null,null,null,null,null,null,null,null,null,null,null,null,null,null,null,null,null,null,"ZWD"]

{"sheet":"Data base Entreprise","index":3,"n_rows":48,"n_cols":11,"rows_kept":48,"cut":false,"hidden":false,"merged":[]}
["Data Base entreprise"]
["First Name","Last Name","Cpy site","Business Unit","Department","E-mail of your manager","E-mail","Password",null,"Department","Password"]
["Anne","T","BSA-Switzerland","Sheet Fed","HR","sylvain.biraben@travail.com","Anne.t@travail.com",{"$f":"VLOOKUP(E3,J:K,2,0)","v":"R3HC22"},null,{"$f":"INDIRECT(\"'Legal docs listing'!AI\"&ROW()-1)","v":"Back Office"},{"$f":"LEFT( UPPER(RIGHT(J3,1))&LEN(J3)*2-1 & LEFT(J3,1) &CHAR(65+MOD(LEN(J3),26))&LEN(J3)&LEN(J3),6)","v":"E21BL1"}]
["Julie","B","BSA-Switzerland","Web Fed","IT","michel.troie@travail.ocm","julie.b@travail.com","T3IC22",null,{"$f":"INDIRECT(\"'Legal docs listing'!AI\"&ROW()-1)","v":"Communication"},{"$f":"LEFT( UPPER(RIGHT(J4,1))&LEN(J4)*2-1 & LEFT(J4,1) &CHAR(65+MOD(LEN(J4),26))&LEN(J4)&LEN(J4),6)","v":"N25CN1"}]
["Karen","M","BSA-Switzerland","Services","Marketing","catherine.jones@travail.com","karen.m@travail.com","G17MJ9",null,"Facility Management","T37FT1"]
["Berny","Y","BSA-Switzerland","Sheet Fed","Procurement","nicolas.momo@travail.com","berny.k@travail.com","T21PL1",null,"Finance","E13FH7"]
["Mallaury","M","BSA-Switzerland","Web Fed","Procurement","nicolas.momo@travail.com","mallaury.m@travail.com","T21PL1",null,"HR","R3HC22"]
["Christophe","Deloitte","ASI-Switzerland","Sheet Fed","Back Office","m@","y@","E21BL1",null,"IP / Legal","L19IK1"]
["Nic","A","ASI-Switzerland","Services","Purchasing",null,null,"G19PK1",null,"IT","T3IC22"]
["Bob","DUPONT","BSA-Switzerland","Web Fed","HR","jean.ferra@test.com","bob.dupont@test.com",{"$f":"VLOOKUP(E10,J:K,2,0)","v":"R3HC22"},null,"Logistic","C15LI8"]
["Christophe","DELOITTE","BSA-Switzerland","Services","Back Office","test@manager.com","christophe.deloitte@test.com",{"$f":"VLOOKUP(E11,J:K,2,0)","v":"E21BL1"},null,"Marketing","G17MJ9"]
["Jc","VANDAM","BAM-Tunisia","Services","Communication","rockk.balboa@boxe.fr","jc.vandam@test.com",{"$f":"VLOOKUP(E12,J:K,2,0)","v":"N25CN1"},null,"Planning","G15PI8"]
[null,null,null,null,null,null,null,null,null,"Procurement","T21PL1"]
[null,null,null,null,null,null,null,null,null,"Production","N19PK1"]
[null,null,null,null,null,null,null,null,null,"Purchasing","G19PK1"]
[null,null,null,null,null,null,null,null,null,"Quality","Y13QH7"]
[null,null,null,null,null,null,null,null,null,"R&D","D5RD33"]
[null,null,null,null,null,null,null,null,null,"Travel","L11TG6"]
[null,null,null,null,null,null,null,null,null,0,"010B11"]
[null,null,null,null,null,null,null,null,null,0,"010B11"]
[null,null,null,null,null,null,null,null,null,0,"010B11"]
[null,null,null,null,null,null,null,null,null,0,"010B11"]
[null,null,null,null,null,null,null,null,null,0,"010B11"]
[null,null,null,null,null,null,null,null,null,0,"010B11"]
[null,null,null,null,null,null,null,null,null,0,"010B11"]
[null,null,null,null,null,null,null,null,null,0,"010B11"]
[null,null,null,null,null,null,null,null,null,0,"010B11"]
[null,null,null,null,null,null,null,null,null,0,"010B11"]
[null,null,null,null,null,null,null,null,null,0,"010B11"]
[null,null,null,null,null,null,null,null,null,0,"010B11"]
[null,null,null,null,null,null,null,null,null,0,"010B11"]
[null,null,null,null,null,null,null,null,null,0,"010B11"]
[null,null,null,null,null,null,null,null,null,0,"010B11"]
[null,null,null,null,null,null,null,null,null,0,"010B11"]
[null,null,null,null,null,null,null,null,null,0,"010B11"]
[null,null,null,null,null,null,null,null,null,0,"010B11"]
[null,null,null,null,null,null,null,null,null,0,"010B11"]
[null,null,null,null,null,null,null,null,null,0,"010B11"]
[null,null,null,null,null,null,null,null,null,0,"010B11"]
[null,null,null,null,null,null,null,null,null,0,"010B11"]
[null,null,null,null,null,null,null,null,null,0,"010B11"]
[null,null,null,null,null,null,null,null,null,0,"010B11"]
[null,null,null,null,null,null,null,null,null,0,"010B11"]
[null,null,null,null,null,null,null,null,null,0,"010B11"]
[null,null,null,null,null,null,null,null,null,0,"010B11"]
[null,null,null,null,null,null,null,null,null,0,"010B11"]
[null,null,null,null,null,null,null,null,null,0,"010B11"]
[null,null,null,null,null,null,null,null,null,0,"010B11"]

{"sheet":"Identification","index":4,"n_rows":0,"n_cols":0,"rows_kept":0,"cut":false,"hidden":true,"merged":[]}

{"sheet":"REPORTING","index":5,"n_rows":0,"n_cols":0,"rows_kept":0,"cut":false,"hidden":false,"merged":[]}

{"sheet":"Feuil1","index":6,"n_rows":30,"n_cols":3,"rows_kept":30,"cut":false,"hidden":false,"merged":[]}
[]
[]
[null,null,"Rappel du contexte : ce fichier aura pour but de recenser tous les contrats de l’entreprise."]
[null,null,"Fonctionnalités : selon les 4 boutons > ajouter, modifier, rechercher ou établir un reporting en fonction de l’historique (= onglet legal docs listing)"]
[null,null,"Ma problématique :"]
[null,null,"Dans l’UF MOD_DOC apparaît le Combobox AMENDMENTS_NM, ainsi que le bouton Consult…."]
[null,null,"Le combobox a pour utilité de faire apparaitre la liste de tous les amendments lié à un contrat existant par fournisseur, et le bouton de lancer l’UF dans lequel les champs décrivant cet amendment s’affiche."]
[]
[null,null,"Lorsque je recherche un contrat, ou cherche à modifier un contrat auquel est lié plusieurs avenants, et que j’utilise ce combobox et son bouton, j’ai les problèmes suivants :"]
[]
[null,null,"- la liste de références fait apparaître des documents qui n’ont rien à voir avec le document initial."]
[null,null,"Ex : il m’indiquera une référence pour un contrat Danone alors que je suis sur un contrat Nestlé…"]
[]
[null,null,"- la liste de références apparaît de manière illogique : la même référence peut apparaître plusieurs fois, et en fonction de la référence choisie, rien ne se passe quand je clique sur le bouton."]
[]
[null,null,"Auriez-vous une idée de comment régler le soucis ?"]
[null,null,"Je souhaiterai que ce bouton liste de manière chronologique (par ordre d’enregistrement du document) les amendments liés au contrat d’origine, et qu’une fois la référence sélectionné, les données de cet avenant s’affiche dans l’UF en conséquence."]
[]
[null,null,"Pour info, j’ai constaté pendant mes tests, que la liste des références affiche des références de mes précédents essais."]
[null,null,"Ex :mon 1er essai était sur le contrat ABC"]
[null,null,"Mon 2ème essai est sur le contrat CBA. La liste des références affichera les avenants du contrat CBA, et ABC…"]
[null,null,"Il faudrait bien sûr que la liste n’affiche que les avenants liés au contrat recherchés…"]
[]
[null,null,"https://mon-partage.fr/f/eJKndwGm/"]
[null,null,"mot de passe : MDP"]
[]
[null,null,"Pour s’identifier sur le fichier:"]
[null,null,"Last name : A"]
[null,null,"First Name : Nic"]
[null,null,"Password : G19PK1"]

{"sheet":"Feuil2","index":7,"n_rows":28,"n_cols":2,"rows_kept":28,"cut":false,"hidden":false,"merged":[]}
[]
[null,"Je viens de voir une petite coquille."]
[null,"Lorsque je cherche un contrat pour lequel il n'y a aucun avenant lié à ce contrat, et que je clique quand même sur le bouton \"Consult this amendment\", j'ai un message d'erreur 380 qui s'affiche."]
[null,"La ligne du code qui pose problème est la suivante :"]
[null,"AMENDMENT_DOC.BU = .Range(\"G\" & Ligne)"]
[]
[]
[null,"Y-a-til un moyen de corriger pour que dans le cas présent, rien ne se passe quand on clique sur le bouton ?"]
[]
[null,"Si non, ou s'il y a un risque que cela endommage le code présent, laissons tomber."]
[null,"Sur le principe, ce n'est pas un gros soucis, car on est pas censé cliquer sur ce bouton s'il n'y a pas d'avenants liés à ce contrat."]
[]
[null,"Merci."]
[]
[]
[null,"2Ème petite coquille…"]
[]
[]
[null,"Je viens d’ajouter un Rolling contract, auprès d’Evian à mon fichier."]
[]
[null,"https://mon-partage.fr/f/aRuo9JyB/"]
[]
[null,"J’ai ensuite fait une modif pour voir si tout marchait, et modifier la date de fin et la valeur du contrat."]
[]
[null,"Dans l’onglet legal docs listing, la date de fin que j’ai modifié s’affiche désormais en texte (01 Dec 2025) et non en chiffre (01.12.2025) comme tous les autres."]
[null,"Peux-t-on faire en sorte que les dates affichées en colonne M, N, T, X & Y soit dans tous les cas, et peu importe le dernier UF utilisé en format jj.mm.2025 ?"]
[]
[null,"Merci."]